Cogmind - Beta 17 @@@ ROGUE MODE // 2026.06.24 @ 18:12:06 Player: WetterLettuce Result: Destroyed by P-60 Hacker with Shock Rifle Performance ------------- Evolutions (2) 1000 Regions Visited (4) 800 Robots Destroyed (56) 280 Value Destroyed (2248) 2248 Prototype IDs (5) 100 Alien Tech Used (0) 0 Bonus (11974) 11974 TOTAL SCORE: 16402 Bonus ------- Follower Combat Kills 74 Prayed to X0-1V1 5000 Major X0-1V1 Interference 3700 Subatomizer Sterilization 3000 Entered Garrisons 200 Cogmind --------- Core Integrity 0/750 Matter 300/300 Energy 71/100 System Corruption 5% Temperature Cool (0) Movement Core (250) Ox4 Location -8/Garrison Parts ------- > --- POWER (1) -------- (None) > --- PROPULSION (3) --- (None) > --- UTILITY (6) ------ Medium Storage Unit Melee Analysis Suite Melee Analysis Suite X0-1V1's Piety Tracker > --- WEAPON (2) ------- Shock Maul > --- INVENTORY (10) --- Light Deuterium Engine Light Nuclear Core Aluminum Leg Carbon-fiber Leg Carbon-fiber Leg Relay Coupler [Brawler] (31) Gauss Rifle Heavy Flail Peak State ------------ > --- POWER ------------ Subdweller Power Source > --- PROPULSION ------- Carbon-fiber Leg Improved VTOL Module Improved VTOL Module > --- UTILITY ---------- Improved Heat Sink Medium Storage Unit Actuator Array Makeshift Propulsion Shielding Shield Generator X0-1V1's Piety Tracker > --- WEAPON ----------- Shock Maul Scimitar of Distortion > --- INVENTORY -------- Light Treads Improved Titanium Leg Small Storage Unit Arc Projector Beam Rifle Assault Rifle Mini Assault Cannon Multitool Heavy Flail Scrap Shield Fragment [Rating: 53] Favorites ----------- Power Ion Engine Engine Ion Engine Power Core Light Nuclear Core Propulsion Light Treads Treads Light Treads Leg Carbon-fiber Leg Wheel Wheel Flight Unit Improved VTOL Module Utility Medium Storage Unit Device Improved Heat Sink Storage Medium Storage Unit Processor Melee Analysis Suite Protection Makeshift Propulsion Shielding Weapon Assault Rifle Energy Gun Subdweller Laser Energy Cannon Beam Cannon Ballistic Gun Assault Rifle Ballistic Cannon Mini Assault Cannon Launcher Grenade Launcher Special Weapon Multitool Impact Weapon Shock Maul Slashing Weapon Scimitar of Distortion Build | -11 -10 -10 -8 -8 ------- Run | Yrd Mat Sub Mat Gar Slots Evolved 4 | . . . 4 . Power . | . . . . . Propulsion 1 | . . . 1 . Utility 3 | . . . 3 . Weapon . | . . . . . Parts Attached 61 | 6 7 14 18 16 Power 6 | 1 3 1 1 . Engine 5 | 1 3 1 . . Core 1 | . . . 1 . Reactor . | . . . . . Propulsion 26 | 2 . 4 10 10 Treads 9 | 2 . 2 2 3 Leg 11 | . . . 4 7 Wheel 3 | . . 2 1 . Hover . | . . . . . Flight 3 | . . . 3 . Utility 14 | 1 2 2 3 6 Device 6 | . 1 1 2 2 Storage 2 | 1 1 . . . Processor 2 | . . . . 2 Hackware . | . . . . . Protection 4 | . . 1 1 2 Artifact . | . . . . . Weapon 15 | 2 2 7 4 . Energy Gun 2 | . . 2 . . Energy Cannon 1 | . . 1 . . Ballistic Gun 6 | 2 1 2 1 . Ballistic Cannon 2 | . . 1 1 . Launcher 1 | . 1 . . . Special Weapon 1 | . . 1 . . Impact Weapon 1 | . . . 1 . Slashing Weapon 1 | . . . 1 . Piercing Weapon . | . . . . . Special Melee Weapon . | . . . . . Unidentified Prototypes 5 | . . 1 4 . Parts Lost 31 | . . 6 6 19 Power 3 | . . 1 1 1 Propulsion 14 | . . 3 1 10 Utility 10 | . . . 4 6 Weapon 4 | . . 2 . 2 Highest Loss Streak 7 | . . 2 4 7 To Critical Strikes . | . . . . . Average Backups 8 | 1 7 8 8 9 Power . | . 1 . . 1 Propulsion 1 | . . 1 1 3 Utility 1 | . 1 2 . 1 Weapon 3 | . 4 3 4 3 Tool/Special . | . . . . . Unused Backups 14 | . 2 . 2 10 Power 3 | . 1 . . 2 Propulsion 3 | . . . . 3 Utility 1 | . . . . 1 Weapon 7 | . 1 . 2 4 Tool/Special . | . . . . . Average Slot Usage (%) 94 | . 98 94 93 91 Engine 9 | . 13 11 5 . Core 1 | . . . . 7 Treads 18 | . 28 16 12 11 Leg 2 | . . . 7 10 Wheel 4 | . . 9 2 . Device 13 | . 12 9 25 12 Storage 12 | . 14 13 10 9 Processor 1 | . . . . 7 Protection 5 | . . 4 9 14 Energy Gun 1 | . . 3 . . Ballistic Gun 14 | . 27 16 . . Ballistic Cannon 3 | . . 3 5 7 Special Weapon 1 | . . 3 . . Slashing Weapon 2 | . . . 7 7 Peak Build Rating 53 | 6 10 27 53 51 Average Rating 21 | 4 9 13 44 42 On Entrance 18 | . 6 10 27 49 Avg Prop Armor Cover (%) 7 | . . 7 6 8 Naked Turns . | . . . . . Heaviest Build 36 | 11 20 24 36 36 Greatest Support 64 | 40 40 40 64 60 Greatest Overweight (x) 4 | . . 4 2 2 Average Overweight (x) . | . . . . . Largest Inventory Capacity 10 | 8 10 10 10 10 Average Capacity 9 | 7 9 10 10 10 Most Carried 10 | 2 10 10 10 10 Average Carried 8 | 1 7 8 9 9 Final Capacity 10 | 8 10 10 10 10 Final Carried 10 | 2 10 8 10 8 Class Distribution -------------------- 98% | Mutant Dominant Class ---------------- Mutant | -10/Materials Mutant | -10/Subcaves Mutant | -8/Materials Mutant | -8/Garrison Resources | -11 -10 -10 -8 -8 ----------- Run | Yrd Mat Sub Mat Gar Matter Collected 2216 | 257 231 635 577 516 Remotely . | . . . . . Salvage Created 2080 | . 291 374 561 854 Parts 106 | . 27 29 20 30 Haulers Intercepted 1 | . 1 . . . Recyclers Shooed 1 | . . . 1 . Parts Field Recycled . | . . . . . Retrieved Matter . | . . . . . Parts Self-Destructed 21 | . . 21 . . Prevented . | . . . . . Parts Restored . | . . . . . Kills | -11 -10 -10 -8 -8 ------- Run | Yrd Mat Sub Mat Gar Combat Hostiles Destroyed 52 | . 9 16 9 18 Melee 17 | . . . 3 14 Guns 19 | . 9 10 . . Cannons 9 | . . 3 4 2 AOE 3 | . . 3 . . Classes Destroyed 12 | . 4 2 4 2 Builder 1 | . . . 1 . Hauler 1 | . 1 . . . Recycler 1 | . . . 1 . Drone 1 | . . 1 . . Watcher 2 | . 1 . 1 . Swarmer 11 | . 5 6 . . Grunt 17 | . 4 2 1 10 Duelist 1 | . . . . 1 Sentry 5 | . . . 3 2 Hunter 7 | . . . 5 2 Programmer 3 | . . . . 3 Subdweller 7 | . . 7 . . Best Kill Streak 9 | . 3 5 9 3 Combat Bots Only 5 | . 3 5 4 3 Max Kills in Single Turn 2 | . 2 1 1 1 Gunslinging 1 | . 1 . . . Exploded 1 | . . 1 . . Melee 1 | . . . 1 1 Uniques/NPCs Destroyed . | . . . . . Combat | -11 -10 -10 -8 -8 -------- Run | Yrd Mat Sub Mat Gar Hostile Shots Fired 489 | . 46 172 106 165 Missed 107 | . 15 42 21 29 Hits 382 | . 31 130 85 136 Melee 61 | . . 56 . 5 Projectile 321 | . 31 74 85 131 AOE 3 | . . . 1 2 Critical Strikes 18 | . . . 3 15 Actively Blocked 11 | . . . 2 9 Damage Taken 4649 | . 346 1147 990 2166 Core 1029 | . 17 252 113 647 Absorbed by Shields 66 | . . . 66 . Redirected to Shielding 215 | . . . 67 148 Core Remaining (%) 93 | 100 . 87 . . Volleys Fired 133 | . 36 74 15 8 Largest 2 | . 2 2 1 1 Hottest 85 | . 40 85 40 40 Shots Fired 215 | . 72 119 16 8 Gun 158 | . 72 86 . . Cannon 49 | . . 25 16 8 Launcher 4 | . . 4 . . Special 4 | . . 4 . . Kinetic 195 | . 72 99 16 8 Thermal 16 | . . 16 . . Explosive 4 | . . 4 . . Electromagnetic . | . . . . . Robot Hit Streak 11 | . 11 10 7 1 Robot Miss Streak 4 | . 3 4 3 2 Penetration Max . | . . . . . Secondary Targets 5 | . 2 3 . . Max Gunslinging Chain 1 | . 1 1 . . Shots Hit Robots 160 | . 46 56 20 38 Core Hits 68 | . 18 24 9 17 Critical Kills . | . . . . . Critical Parts Destroyed 2 | . . 1 . 1 Critical Strikes 5 | . . 3 1 1 Destroy 2 | . . 2 . . Blast 2 | . . 1 1 . Smash 1 | . . . . 1 Melee Attacks 58 | . . . 13 45 Impact 6 | . . . . 6 Slashing 52 | . . . 13 39 Piercing . | . . . . . Sneak Attacks 1 | . . . . 1 Combat Hostiles 1 | . . . . 1 Follow-up Attacks . | . . . . . Damage Inflicted 3576 | . 541 995 601 1439 Guns 1157 | . 541 616 . . Cannons 535 | . . 214 245 76 Explosions 183 | . . 156 . 27 Melee 1692 | . . . 356 1336 Ramming 9 | . . 9 . . Kinetic 1652 | . 541 790 245 76 Thermal 40 | . . 40 . . Explosive 183 | . . 156 . 27 Electromagnetic . | . . . . . Impact 262 | . . . . 262 Slashing 1430 | . . . 356 1074 Piercing . | . . . . . Highest Corruption 10 | . 1 1 10 5 Average Corruption 1 | . 1 1 10 3 Corruption Purged . | . . . . . Corruption Blocked . | . . . . . Effects 13 | . 3 8 1 1 Message Errors 2 | . 1 1 . . Matter Fused 4 | . . 3 . 1 Heat Flow Errors 3 | . 2 1 . . Energy Discharges 2 | . . 1 1 . Misfires 1 | . . 1 . . Weapon Failures 1 | . . 1 . . Overload Shots . | . . . . . Overflow Damage 129 | . . . 7 122 Projectiles 7 | . . . 7 . Explosions . | . . . . . Melee 122 | . . . . 122 Knockbacks 4 | . . . 4 . Impact . | . . . . . Kinetic 4 | . . . 4 . Secondary . | . . . . . Self-Inflicted Damage 28 | . . . . 28 Shots 1 | . . . . 1 Rammed 6 | . . 6 . . Targets Rammed 6 | . . 6 . . Kicked . | . . . . . Crushed . | . . . . . Highest Temperature 223 | . 190 149 223 . Average Temperature 62 | . 59 37 127 . Received Heat Transfer 975 | . 120 162 108 585 Siege Activations . | . . . . . Martial Activations . | . . . . . Shielding Activations . | . . . . . Robots Disrupted . | . . . . . Combat Hostiles . | . . . . . Robots Corrupted . | . . . . . Combat Hostiles . | . . . . . Parts Fried . | . . . . . Impact Corruptions 3 | . . . . 3 Robots Melted . | . . . . . Combat Hostiles . | . . . . . Parts Melted 6 | . . . 6 . Heat Transferred 62 | . . 62 . . Parts Sabotaged . | . . . . . Parts Stolen 5 | . . 5 . . Parts Stripped 19 | . . . 5 14 Power Chain Reactions . | . . . . . Alert | -11 -10 -10 -8 -8 ------- Run | Yrd Mat Sub Mat Gar Maximum Alert Level 1 | . . . . 1 Low Security (%) 81 | 100 100 . 100 38 Level 1 18 | . . . . 61 Level 2 . | . . . . . Level 3 . | . . . . . Level 4 . | . . . . . Level 5 . | . . . . . High Security . | . . . . . Max Security . | . . . . . Sterilizations 1 | . . . 1 . Peak Influence 337 | . 76 . 118 337 Initial 52 | . . . . 52 Average 87 | . 22 . 36 233 Influence Increases 1248 | . 258 200 325 465 Destroy 0b10 Robot/C 940 | . 180 180 220 360 Destroy 0b10 Robot/NC 25 | . 10 . 15 . Destroy Leader 106 | . 34 20 22 30 Allied During Kill 16 | . . . 16 . Successful Hack 22 | . 18 . 4 . Disable Machine 30 | . 15 . 15 . Anti-Garrison Action 50 | . . . . 50 Destroy Structure 14 | . 1 . 3 10 Lose Combat Pursuer 45 | . . . 30 15 Influence Decreases 921 | . 213 245 244 219 Entered New Map 51 | . . 22 . 29 Time Decay 537 | . 213 183 141 . Lost Part 280 | . . 40 50 190 Lost Ally 53 | . . . 53 . Squads Dispatched 2 | . . . 2 . Investigation 1 | . . . 1 . Extermination . | . . . . . Reinforcement 1 | . . . 1 . Assault . | . . . . . Garrison . | . . . . . Intercept . | . . . . . Searches Triggered . | . . . . . Construction Impeded . | . . . . . Haulers Reinforced . | . . . . . Active Scanning Responses . | . . . . . Cargo Convoy Interrupts . | . . . . . Stealth | -11 -10 -10 -8 -8 --------- Run | Yrd Mat Sub Mat Gar Distress Signals 3 | . 2 . 1 . Communications Jammed . | . . . . . Distress Signals . | . . . . . Times Spotted 79 | . 19 23 16 21 Peak Tracking Total 5 | . 5 5 5 5 Tactical Retreats 3 | . . . 2 1 Traps | -11 -10 -10 -8 -8 ------- Run | Yrd Mat Sub Mat Gar Traps Triggered 7 | . 3 2 . 2 Indirectly . | . . . . . Trap Hack Attempts . | . . . . . Triggered . | . . . . . Disarmed . | . . . . . Reprogrammed . | . . . . . Reused . | . . . . . Traps Extracted . | . . . . . Installed . | . . . . . Triggered . | . . . . . Machines | -11 -10 -10 -8 -8 ---------- Run | Yrd Mat Sub Mat Gar Machines Disabled 3 | . 1 . 1 1 Max in Single Turn 1 | . 1 . 1 1 Garrison Relay 1 | . . . . 1 Machines Repaired . | . . . . . Machines Dismantled . | . . . . . Machines Sabotaged . | . . . . . Overloaded Fab Kills . | . . . . . Hacking | -11 -10 -10 -8 -8 --------- Run | Yrd Mat Sub Mat Gar Machines Accessed 9 | . 6 . 3 . Terminals 5 | . 4 . 1 . Fabricators . | . . . . . Repair Stations . | . . . . . Recycling Units 2 | . 2 . . . Scanalyzers 1 | . . . 1 . Garrison Access 1 | . . . 1 . Total Hacks 23 | . 16 . 7 . Successful 12 | . 8 . 4 . Failed 10 | . 8 . 2 . Catastrophic 1 | . . . 1 . Database Lockouts 1 | . . . 1 . Manual 15 | . 14 . 1 . Terminals 12 | . 11 . 1 . Fabricators . | . . . . . Repair Stations . | . . . . . Recycling Units 5 | . 5 . . . Scanalyzers 4 | . . . 4 . Garrison Access 2 | . . . 2 . Terminal Hacks . | . . . . . Fabricator Hacks . | . . . . . Repair Station Hacks . | . . . . . Recycling Unit Hacks 1 | . 1 . . . Retrieve Components 1 | . 1 . . . Scanalyzer 3 | . . . 3 . Retrieve Study 3 | . . . 3 . Garrison Access Hacks 1 | . . . 1 . Unlock Access 1 | . . . 1 . Unauthorized Hacks 7 | . 7 . . . Terminals 5 | . 5 . . . Botnet 4 | . 4 . . . Operators 1 | . 1 . . . Fabricators . | . . . . . Repair Stations . | . . . . . Recycling Units 2 | . 2 . . . Recyclers 2 | . 2 . . . Scanalyzers . | . . . . . Garrison Access . | . . . . . Data Cores Recovered . | . . . . . Used . | . . . . . Hacking Detections 7 | . 5 . 2 . Full Trace Events . | . . . . . Feedback Events . | . . . . . Feedback Blocked . | . . . . . Robot Schematics Acquired . | . . . . . Robots Built . | . . . . . Authchips . | . . . . . Time . | . . . . . Total Robot Build Rating . | . . . . . Part Schematics Acquired . | . . . . . Parts Built . | . . . . . Authchips . | . . . . . Time . | . . . . . Total Part Build Rating . | . . . . . Part Studies Acquired 3 | . . . 3 . Parts Repaired . | . . . . . Time . | . . . . . Parts Recycled . | . . . . . Recycled Matter . | . . . . . Retrieved Matter . | . . . . . Retrieved Components 5 | . 5 . . . Parts Scanalyzed . | . . . . . Part Schematics Acquired . | . . . . . Parts Damaged . | . . . . . Bothacking | -11 -10 -10 -8 -8 ------------ Run | Yrd Mat Sub Mat Gar Used RIF Installer . | . . . . . Robots Hacked . | . . . . . Non-combat . | . . . . . Combat . | . . . . . Robot Hacks Applied . | . . . . . Relay Couplers Released 3 | . . . . 3 Machine Destruction 3 | . . . . 3 Fabnet Peak Effective % . | . . . . . Robots Rewired . | . . . . . Allies Hacked . | . . . . . Hacks Repelled . | . . . . . Allies | -11 -10 -10 -8 -8 -------- Run | Yrd Mat Sub Mat Gar Total Allies 4 | . . . 4 . Largest Group 4 | . . . 4 . Highest-Rated Group 64 | . . . 64 . Highest-Rated Ally 16 | . . . 16 . Total Orders . | . . . . . Ally Attacks 15 | . . . 15 . Total Damage 197 | . . . 197 . Kills 2 | . . . 2 . Allies Corrupted . | . . . . . Allies Melted . | . . . . . X0-1V1 Amusement Gains 95 | . 13 . 82 . Good Acts 36 | . . 13 23 . Bad Acts 29 | . . 13 13 3 Intel | -11 -10 -10 -8 -8 ------- Run | Yrd Mat Sub Mat Gar Active Infowar (turns) . | . . . . . Robot Analysis Total . | . . . . . Derelict Logs Recovered 2 | . . 2 . . Drone Launches . | . . . . . Drone Recoveries . | . . . . . Exploration | -11 -10 -10 -8 -8 ------------- Run | Yrd Mat Sub Mat Gar Turns Passed 3182 | 61 896 1221 426 578 Spaces Moved 1747 | 36 449 771 226 265 Core 14 | 6 . 8 . . Treads 1029 | 30 449 281 127 142 Legs 186 | . . . 63 123 Wheels 518 | . . 482 36 . Hover . | . . . . . Flight . | . . . . . Fastest Speed 50 | 50 160 95 90 120 Average Speed 140 | 141 160 126 133 152 Slowest Speed 260 | 160 160 250 260 260 Overloaded Moves . | . . . . . Propulsion Burnouts . | . . . . . Robots Hopped . | . . . . . Potential Cave-ins . | . . . . . Cave-ins Triggered . | . . . . . Exploration Rate (%) 37 | 3 75 47 33 31 Regions Visited 4 Branch Regions 1 Pre-discovered Areas 1 | . . 1 . . Known Exits Taken 1 | . . . 1 . Unknown Exits Taken 3 | 1 1 1 . . Scrap Searched . | . . . . . Spaces Dug . | . . . . . Terrain Destroyed 33 | . . 30 3 . Melee . | . . . . . Projectile 3 | . . . 3 . AOE 30 | . . 30 . . Terrain Rammed . | . . . . . Walls Destroyed . | . . . . . Machines Disabled . | . . . . . Actions | -11 -10 -10 -8 -8 --------- Run | Yrd Mat Sub Mat Gar Total 2169 | 43 554 897 314 361 Wait 75 | . 45 6 13 11 Move 1744 | 35 448 770 226 265 Hop . | . . . . . Pick Up 43 | 2 10 14 9 8 Fast Attach 35 | 6 4 1 15 9 Attach 24 | . . 13 3 8 Detach . | . . . . . Swap 20 | . 7 8 5 . Drop 30 | . 4 5 15 6 Fire 133 | . 36 74 15 8 Melee 58 | . . . 13 45 Ram . | . . . . . Kick . | . . . . . Crush 6 | . . 6 . . Escape Stasis . | . . . . . Rewire 1 | . . . . 1 Trap . | . . . . . Miscellaneous . | . . . . . Route ------- -11/Scrapyard -10/Materials (discovered 3 exits: [*Mat x2] / [*Sub]) -10/Subcaves (discovered 2 exits: *Mat / Rec) -8/Materials (discovered 4 exits: *Fac x3 / Gar) -8/Garrison History --------- Turn | Location | Event 23 | -11/Scrapyard | Discovered new exit (range 16) 62 | -11/Scrapyard | Entered Materials 304 | -10/Materials | Build established: Mutant 570 | -10/Materials | Discovered new exit (range 11) 837 | -10/Materials | Discovered new exit (range 13) 932 | -10/Materials | Discovered new exit (range 8) 958 | -10/Materials | Prayed at D.C.S.S. Altar Unit 958 | -10/Materials | Entered Subcaves 1101 | -10/Subcaves | Learned location of Storage (-9) 1181 | -10/Subcaves | Ambushed by Subdweller buried in earth 1346 | -10/Subcaves | Core integrity fell below 50% 1452 | -10/Subcaves | Learned Materials terminal intel 1467 | -10/Subcaves | Discovered new exit (range 7) 1517 | -10/Subcaves | Ambushed by Subdwellers from Twisted Machinery 1774 | -10/Subcaves | X0-1V1 sent hostile S-10 Pest (x3) 1853 | -10/Subcaves | Hvy. Assault Rifle reconfigured into Item Mimic 1859 | -10/Subcaves | Core integrity fell below 20% 1902 | -10/Subcaves | X0-1V1 whisked you away to safety 2031 | -10/Subcaves | Heat dissipation permanently improved by X0-1V1 (+20) 2038 | -10/Subcaves | X0-1V1 sent hostile G-34 Mercenary (x4) 2050 | -10/Subcaves | X0-1V1 rescued you from certain death 2130 | -10/Subcaves | Utility slot count permanently improved by X0-1V1 (+1) 2139 | -10/Subcaves | Core integrity restored by X0-1V1 (+31) 2143 | -10/Subcaves | Core integrity permanently improved by X0-1V1 (+300) 2145 | -10/Subcaves | X0-1V1 activates XOMVISION 2162 | -10/Subcaves | X0-1V1 sent hostile G-34 Mercenary (x3) 2164 | -10/Subcaves | Identified exit to Recycling 2164 | -10/Subcaves | X0-1V1 revealed exit location to -9/Recycling 2179 | -10/Subcaves | Entered Materials 2179 | -8/Materials | Evolved 4 slots: Propulsion x1, Utility x3 2180 | -8/Materials | Loaded intel: 12 terminal locations 2180 | -8/Materials | X0-1V1 announced a LAN party 2193 | -8/Materials | System corruption reached 10% 2196 | -8/Materials | X0-1V1 redirected Transport squads to designated parking area 2196 | -8/Materials | Central database locked down 2196 | -8/Materials | X0-1V1 sent you to a vault 2204 | -8/Materials | Found Prototype Slashing Weapon 2204 | -8/Materials | Identified Scimitar of Distortion 2206 | -8/Materials | X0-1V1 enhanced Transport squad support 2247 | -8/Materials | Identified exit to Factory 2247 | -8/Materials | X0-1V1 revealed exit location to -7/Factory 2248 | -8/Materials | X0-1V1 released a cloud of subatomizers 2249 | -8/Materials | X0-1V1 foreshadows a heat wave 2271 | -8/Materials | Discovered exit to Factory (range 11) 2291 | -8/Materials | X0-1V1 sent allied G-47 Trooper (x4) 2306 | -8/Materials | X0-1V1 revealed exit location to -7/Factory 2307 | -8/Materials | X0-1V1 rewrote G-47 Trooper IFF filter 2344 | -8/Materials | Lost 3 allies 2397 | -8/Materials | Ambient heat levels rising (+10) 2512 | -8/Materials | Lost 4 parts (1p1n2u) 2584 | -8/Materials | Sterilization system engaged 2584 | -8/Materials | Non-combat units ordered to evacuate 2605 | -8/Materials | Identified exit to Garrison 2605 | -8/Materials | Entered Garrison 2653 | -8/Garrison | Triggered checkpoint 2676 | -8/Garrison | Lost 3 parts (3n) 2825 | -8/Garrison | Garrison Relay disabled 2906 | -8/Garrison | Triggered checkpoint 3003 | -8/Garrison | Triggered checkpoint 3015 | -8/Garrison | Core integrity fell below 50% 3053 | -8/Garrison | Triggered checkpoint 3053 | -8/Garrison | Lost 3 parts (1n2u) 3112 | -8/Garrison | Lost 5 parts (2n3u) 3153 | -8/Garrison | Triggered checkpoint 3157 | -8/Garrison | X0-1V1 sent hostile P-60 Hacker (x4) 3170 | -8/Garrison | Core integrity fell below 20% 3183 | -8/Garrison | Destroyed by P-60 Hacker with Shock Rifle Last Messages --------------- Aluminum Leg destroyed. Destroyed Target Analyzer. P-60 Hacker system corrupted by crushing effect. P-60 Hacker destroyed. Acquired 1 matter. System corrupted: Matter fused (-6). Acquired 6 matter. Imp. Aluminum Leg destroyed. P-60 Hacker destroyed. Mak. Propulsion Shielding destroyed. Aluminum Leg destroyed. P-60 Hacker suffers critical hit (Smash). Destroyed Remote Datajack. Destroyed Mic. Nuclear Core. P-60 Hacker system corrupted by crushing effect. P-60 Hacker resets P-60 Hacker, system corruption cleaned. P-60 Hacker destroyed. X0-1V1 laughs nastily! Map ----- +----------------------------------------------------+ | ?????????????????# "###### ####!#????? | | ?????????????????# #????###??# #????? | | ?????????????????############# #?????????# #????? | | ?????????????????????????????# #?????????# #????? | | ?????????????????????????????# #?????????# #####? | | ?????????????????????????????# #?????????# [*#? | | ?????????????????????????????# #?????????# ### #? | | ?????????????????????????????# #?????????# #?# ## | | ?????????????????????????????# #?????????# #?#%%! | | ?????????????????????????????# #????????######[* | | ?????????????????????????????# ########## | | ?????????????????????????????# | | ?????????????????????????????# | | ?????????????????????????????############# ## | | ???????????????????????????????????????### ## | | ???????????????????????????????????????# | | ???????????????????????????????????????# [% | | ???????????????????????????????????????# % | | ???????????????????????????????????????# % | | ???????????????????????????????????????### ## | | ?????????????????????????????????????????# ## ^^ | | ?????????????????????????????????????????# % | | ?????????????????????????????????????????# | | ???????????????# ##############????????#%^[ | | ????????????? [p[== #????????## ## | | ????????????????????#####@*=### #?????????# #? | | ????????????????????????#=! #?# #?????????# #??## | | ????????????????????????##;##?# #?????????# #???? | | ?????????????????????????# #??# #?????????# #???? | | ?????????????????????????# #??# #?????????# #???? | | ?????????????????????????# #??# #?????????# #???? | | ?????????????????????????# #### ###########% #???? | | ?????????????????????????# # % #???? | | ?????????????????????????### #???? | | ???????????????????????????# ################???? | | ???????????????????????????# ???????????????????? | | ???????????????????????????# ???????????????????? | | ???????????????????????????# ????????????????????? | | ???????????????????????????# ????????????????????? | | ???????????????????????????# ????????????????????? | | ???????????????????????????#?????????????????????? | | ?????????????????????????????????????????????????? | | ?????????????????????????????????????????????????? | | ?????????????????????????????????????????????????? | | ?????????????????????????????????????????????????? | | ?????????????????????????????????????????????????? | | ?????????????????????????????????????????????????? | | ?????????????????????????????????????????????????? | | ?????????????????????????????????????????????????? | | ?????????????????????????????????????????????????? | +----------------------------------------------------+ Best States ------------- Heat Dissipation 65 Energy Generation 15 Energy Capacity 1050 Matter Stores 900 Matter Capacity 900 Sight Range 20 Terrain Scan Density 10 Armor Coverage 150 Core Shielding 20 Propulsion Shielding 15 Evasion (%) 55 Melee Accuracy 10 Recoil Reduction 3 Item Schematics ----------------- None Robot Schematics ------------------ None Fabricated ------------ Nothing Repaired ---------- Nothing Studied --------- Lgt. Assault Rifle | -8/Materials | Hacked Assault Rifle | -8/Materials | Hacked Beam Rifle | -8/Materials | Hacked Alien Tech Used ----------------- None Achievements -------------- None Challenges ------------ None Game ------ Seed RiotZhirovDoomcannon Manual? 0 Play Time 00:28:32 Cumulative 114.4 hours Start 2026.06.24 @ 17:43:48 End 2026.06.24 @ 18:12:06 Sessions 1 Manual Loads 0 Difficulty Rogue Special Mode None Game No. 141 Rogue 141 Adventurer 0 Explorer 0 Win Type - Total 1 Types 1/0/0/0/0/0/0/0/0/0 Lore% 75 Gallery% 56 Achievement% 41 Wizard Run 0 Options --------- Layout 1 ASCII 0 Keyboard 0 Movement Mouse Keybinds 0 Fullscreen 2 Font 24/Smallcaps Map View 50x35 Zoom Use 0% Tactical HUD 0 Map Filters NONE Filters NONE Steam 1 RUN: 3be81f35-d80e-4ab5-ba16-56d63f4298aa